bitfinex-derivatives/quotes_ETHF0:USTF0_20250422
["timestamp","ask_amount","ask_price","bid_price","bid_amount"]
[1745340425974,1.71106457,1695.4,1695.3,1.179]
[1745340426174,8.03306457,1695.4,1695.3,1.179]
[1745340426371,6.322,1695.4,1695.3,1.179]
[1745340426675,6.322,1695.4,1695.3,2.0253]
[1745340427275,41.83013939,1695.5,1695.4,1.17893]
[1745340427464,41.83013939,1695.5,1695.4,2.86903]
[1745340428371,41.83013939,1695.5,1695.4,1.17893]
[1745340428372,48.15213939,1695.5,1695.4,1.17893]
[1745340428671,51.35993939,1695.5,1695.2,4.63777]
[1745340428877,52.53882939,1695.5,1695.4,1.17893]
[1745340429469,52.53882939,1695.5,1695.2,4.63777]
[1745340429669,1.7289,1695.4,1695.3,1.179]
[1745340430174,14.22983,1695.4,1695.3,1.179]
[1745340430769,13.0509,1695.4,1695.3,1.179]
[1745340430979,8.0509,1695.4,1695.3,1.179]
[1745340434776,8.0509,1695.4,1695.3,2.8971]
[1745340436882,6.322,1695.4,1695.3,2.8971]
[1745340437886,6.322,1695.4,1695.3,6.9501]
[1745340438075,6.322,1695.4,1695.3,3.7423]
[1745340438276,43.54393939,1695.5,1695.4,1.17893]
[1745340438477,41.83013939,1695.5,1695.4,1.17893]
[1745340438783,1.17893,1695.4,1695.1,6.15563]
[1745340438980,0.8109,1695.3,1695.0,1.17917]
[1745340439177,1.17913,1695.1,1695.0,1.17233457]
[1745340439381,5.25019,1695.2,1695.1,1.17913]
[1745340440178,11.57219,1695.2,1694.9,7.65139939]
[1745340440376,11.57219,1695.2,1695.1,1.17913]
[1745340440586,11.57217,1695.2,1695.1,1.17913]
[1745340440783,10.3931,1695.2,1695.1,1.17913]
[1745340441182,4.0711,1695.2,1695.1,1.17913]
[1745340442980,0.8633,1695.2,1695.1,1.17913]
[1745340444280,0.8109,1695.3,1695.2,1.17907]
[1745340444476,4.0657,1695.4,1695.3,1.179]
[1745340446191,0.8579,1695.4,1695.3,1.179]
[1745340446389,40.80883939,1695.5,1695.4,1.17893]
[1745340447587,41.65793939,1695.5,1695.4,1.17893]
[1745340448794,40.80883939,1695.5,1695.4,1.17893]
[1745340448993,40.80883939,1695.5,1695.4,2.79993]
[1745340450491,0.00883939,1695.5,1695.4,2.79993]
[1745340450786,9.39e-06,1695.5,1695.4,6.00773]
[1745340450988,9.39e-06,1695.5,1695.4,11.00773]
[1745340451187,9.39e-06,1695.5,1695.4,12.62893]
[1745340451789,9.39e-06,1695.5,1695.4,13.09566108]
[1745340453387,9.39e-06,1695.5,1695.4,7.62893]
[1745340458491,9.39e-06,1695.5,1695.4,4.42113]
[1745340459199,9.39e-06,1695.5,1695.4,7.62893]
[1745340461299,9.39e-06,1695.5,1695.4,4.42113]
[1745340461501,9.39e-06,1695.5,1695.4,2.80013]
[1745340462004,1.72760939,1695.5,1695.4,1.17893]
[1745340462199,8.04960939,1695.5,1695.4,1.17893]
[1745340463199,8.04960939,1695.5,1695.4,2.79353]
[1745340463400,6.32200939,1695.5,1695.4,2.79353]
[1745340463704,6.32200939,1695.5,1695.4,6.00133]
[1745340464205,9.39e-06,1695.5,1695.4,6.00133]
[1745340465706,9.39e-06,1695.5,1695.4,2.79353]
[1745340466308,9.39e-06,1695.5,1695.4,6.00133]
[1745340467608,9.39e-06,1695.5,1695.4,4.38673]
[1745340468106,6.32200939,1695.5,1695.4,6.01273]
[1745340468507,8.01720939,1695.5,1695.4,6.01273]
[1745340468807,8.01720939,1695.5,1695.4,4.38673]
[1745340469314,9.19606939,1695.5,1695.4,4.38673]
[1745340469605,8.01720939,1695.5,1695.4,4.38673]
[1745340470712,9.19606939,1695.5,1695.4,4.38673]
[1745340470904,8.01720939,1695.5,1695.4,4.38673]
[1745340472007,12.40386939,1695.5,1695.4,1.17893]
[1745340473398,1.17903,1695.3,1695.2,1.179]
[1745340473596,6.15544,1695.3,1694.9,3.21663939]
[1745340473805,2.89383,1695.2,1695.1,1.17913]
[1745340474007,1.17916,1695.1,1695.0,1.17914]
[1745340474303,1.7147,1695.1,1695.0,1.17914]
[1745340474608,6.10163,1695.1,1695.0,1.17914]
[1745340474801,45.7225,1695.1,1695.0,1.17914]
[1745340475002,46.90163,1695.1,1695.0,1.17914]
[1745340477310,43.69383,1695.1,1695.0,1.17914]
[1745340477713,1.1792,1695.0,1694.9,0.00883939]
[1745340478018,3.725,1695.0,1694.9,0.00883939]
[1745340478211,10.047,1695.0,1694.9,0.00883939]
[1745340478603,10.047,1695.0,1694.6,7.82567]
[1745340478604,2.94835,1694.9,1694.6,1.17946]
[1745340478803,2.94835,1694.9,1694.3,2.94918]
[1745340478804,1.17965,1694.4,1694.1,3.2078]
[1745340479004,2.86619,1694.3,1694.2,1.17971]
[1745340479314,1.6865,1694.3,1694.2,1.17971]
[1745340479511,1.6865,1694.3,1694.2,2.94081]
[1745340480510,1.6865,1694.3,1694.1,1.18862939]
[1745340480708,1.17976,1694.2,1694.1,0.00883939]
[1745340480902,1.6865,1694.3,1694.2,1.17976]
[1745340481103,8.0085,1694.3,1694.2,1.17976]
[1745340481516,9.18819,1694.3,1694.2,1.17976]
[1745340482517,1.17976,1694.2,1694.1,0.00883939]
[1745340482707,5.99436,1694.2,1694.1,0.00883939]
[1745340482903,10.99436,1694.2,1694.1,0.00883939]
[1745340483108,12.31636,1694.2,1694.1,0.00883939]
[1745340484109,2.9496,1694.1,1693.6,0.8761]
[1745340484315,1.18011,1693.8,1693.7,1.1801]
[1745340484617,1.18004,1693.8,1693.7,1.1801]
[1745340484813,2.88762,1693.9,1693.8,1.18003]
[1745340485214,43.68762,1693.9,1693.8,7.50203]
[1745340485908,40.8,1693.9,1693.8,7.50203]
[1745340486815,40.8,1693.9,1693.8,8.37143]
[1745340487015,40.8,1693.9,1693.8,9.24633]
[1745340488412,40.8,1693.9,1693.8,10.98663]
[1745340490322,1.18019,1693.6,1693.5,1.18021]
[1745340490520,1.1802,1693.6,1693.3,7.90176]
[1745340490722,6.36463,1693.8,1693.6,1.18017]
[1745340490723,1.7144,1693.7,1693.6,1.18017]
[1745340490912,4.9222,1693.7,1693.5,1.7431]
[1745340491115,1.18029,1693.5,1693.2,1.7302]
[1745340491314,1.18028,1693.5,1693.4,1.18031]
[1745340491521,3.2078,1693.7,1693.4,1.18031]
[1745340491709,0.00883939,1693.5,1693.4,1.18031]
[1745340491914,1.18908939,1693.5,1693.3,1.7431]
[1745340492117,1.18908939,1693.5,1693.4,7.50232]
[1745340492321,0.00883939,1693.5,1693.4,7.50232]
[1745340493713,1.18908939,1693.5,1693.4,7.50232]
[1745340494109,1.18908939,1693.5,1693.4,6.322]
[1745340494417,4.39688939,1693.5,1693.4,7.50232]
[1745340494718,0.00883939,1693.5,1693.4,7.50232]
[1745340494920,2.95115,1693.3,1692.7,3.2078]
[1745340495114,1.18077,1692.8,1692.7,1.18079]
[1745340495314,41.98077,1692.8,1692.7,1.18081]
[1745340496023,40.8,1692.8,1692.7,1.18081]
[1745340496325,3.2078,1693.1,1692.7,15.71061]
[1745340496522,1.18061,1693.0,1692.9,1.18064]
[1745340496823,4.38838,1693.1,1692.9,1.18064]
[1745340497023,1.1806,1693.0,1692.9,1.18064]
[1745340497227,1.1806,1693.0,1692.9,7.50264]
[1745340497417,40.8,1693.0,1692.9,7.50264]
[1745340499924,41.9806,1693.0,1692.9,7.50264]
[1745340500126,40.8,1693.0,1692.9,7.50264]
[1745340500928,41.9806,1693.0,1692.9,6.322]
[1745340501631,41.9806,1693.0,1692.9,7.9949]
[1745340502328,41.9806,1693.0,1692.9,9.17557]
[1745340503424,43.6596,1693.0,1692.9,9.17557]
[1745340504327,43.6596,1693.0,1692.9,7.9949]
[1745340504523,47.479,1693.0,1692.5,1.6978]
[1745340504729,1.18085,1692.7,1692.6,2.94352]
[1745340504914,4.38859,1692.8,1692.7,1.18081]
[1745340505120,1.18079,1692.8,1692.7,1.18081]
[1745340505322,1.18081,1692.7,1692.6,2.94353]
[1745340505831,1.18079,1692.8,1692.7,1.18076]
[1745340506022,2.95178,1692.9,1692.6,2.94352]
[1745340506023,1.18081,1692.7,1692.6,2.94352]
[1745340506222,1.18072,1692.9,1692.8,1.18069]
[1745340506625,1.18074,1692.8,1692.7,2.79785]
[1745340507225,1.18074,1692.8,1692.7,9.11985]
[1745340507433,1.18074,1692.8,1692.7,7.50281]
[1745340507928,2.95204,1692.7,1692.1,1.18121]
[1745340508232,1.18121,1692.2,1692.1,1.18121]
[1745340508631,1.18114,1692.3,1692.2,1.18113]
[1745340508824,1.18119,1692.2,1692.0,1.6435]
[1745340509128,1.18119,1692.2,1692.0,7.9655]
[1745340509333,1.18123,1692.1,1692.0,6.322]
[1745340509832,1.18123,1692.1,1692.0,7.5033]
[1745340510036,1.18123,1692.1,1692.0,6.322]
[1745340510230,4.38903,1692.1,1692.0,6.322]
[1745340511335,4.38903,1692.1,1692.0,7.5033]
[1745340512035,4.38903,1692.1,1692.0,6.322]
[1745340512335,9.38903,1692.1,1692.0,6.322]
[1745340512534,4.38903,1692.1,1692.0,6.322]
[1745340513133,4.38903,1692.1,1692.0,7.5033]
[1745340513331,4.38903,1692.1,1692.0,6.322]
[1745340513637,4.38903,1692.1,1692.0,7.5033]
[1745340514140,4.38903,1692.1,1692.0,6.322]
[1745340516033,9.38903,1692.1,1692.0,6.322]
[1745340516234,9.38903,1692.1,1691.7,0.8455]
[1745340516235,1.18143,1691.8,1691.7,0.8455]
[1745340516433,9.1178,1692.1,1691.7,3.79926]
[1745340516628,5.91,1692.1,1691.9,1.18132]
[1745340516829,5.91,1692.1,1691.8,0.8569]
[1745340517040,5.9,1691.8,1691.0,0.47818016]
[1745340517232,1.18225,1690.7,1690.6,1.7805]
[1745340517436,1.18228,1690.6,1690.4,1.7189]
[1745340517738,1.18228,1690.6,1690.5,1.7805]
[1745340518336,40.80886577,1690.7,1690.6,1.18227]
[1745340518738,40.80886577,1690.7,1690.6,6.18227]
[1745340519133,41.99112577,1690.7,1690.5,1.7805]
[1745340519334,41.99109577,1690.7,1690.5,2.96282]
[1745340519536,40.80886577,1690.7,1690.6,1.18227]
[1745340519832,40.80886577,1690.7,1690.5,1.7805]
[1745340520037,41.99108577,1690.7,1690.5,2.9628]
[1745340520432,40.80886577,1690.7,1690.6,1.18227]
[1745340520943,40.80886577,1690.7,1690.6,9.39007]
[1745340522229,40.80886577,1690.7,1690.6,4.39007]
[1745340522437,0.8433,1691.3,1690.6,4.39007]
[1745340522438,3.2078,1691.7,1690.6,11.86830295]
[1745340522641,1.18163,1691.6,1691.4,1.18168]
[1745340522843,1.18163,1691.6,1691.5,1.7026]
[1745340523049,1.18171,1691.4,1691.3,1.7424]
[1745340523235,1.18169,1691.5,1691.3,8.0644]
[1745340523440,1.18164,1691.5,1691.4,1.7662]
[1745340523840,40.8,1691.5,1691.4,2.94789]
[1745340524035,41.98164,1691.5,1691.4,1.7662]
[1745340524237,41.98164,1691.5,1691.4,8.0882]
[1745340525141,40.8,1691.5,1691.4,9.26991]
[1745340525437,40.8,1691.5,1691.4,8.0882]
[1745340525641,41.98164,1691.5,1691.4,9.26991]
[1745340525841,41.98164,1691.5,1691.4,8.0882]
[1745340526343,43.67254,1691.5,1691.4,6.322]
[1745340526842,46.88034,1691.5,1691.4,6.322]
[1745340527438,57.79034,1691.5,1691.4,6.322]
[1745340527739,52.79034,1691.5,1691.4,6.322]
[1745340528642,46.71,1691.5,1691.4,7.50371]
[1745340528941,0.00886577,1691.6,1691.5,1.18164]
[1745340529241,1.18135,1692.0,1691.9,1.18134]
[1745340529439,1.6154,1692.1,1692.0,1.1813]
[1745340529630,1.18121,1692.2,1692.1,1.18123]
[1745340530042,1.18125,1692.1,1692.0,1.18124]
[1745340530244,1.18125,1692.1,1692.0,7.50324]
[1745340530740,2.7966,1692.2,1692.1,1.18123]
[1745340530943,40.8,1692.2,1692.1,1.18123]
[1745340532241,4.863,1692.7,1692.4,1.18098]
[1745340532542,1.18093,1692.6,1692.4,4.38878]
[1745340532743,40.8,1692.5,1692.4,1.18098]
[1745340532944,40.8,1692.5,1692.3,0.8471]
[1745340533143,1.18102,1692.4,1692.3,0.8471]
[1745340533441,1.18109,1692.3,1692.2,3.21666577]
[1745340533643,1.18109,1692.3,1692.2,0.00886577]
[1745340534245,1.18109,1692.3,1692.2,6.33086577]
[1745340534946,1.18109,1692.3,1692.2,7.51202577]
[1745340535142,1.18109,1692.3,1692.2,6.33086577]
[1745340537837,2.85819,1692.3,1692.2,6.33086577]
[1745340538038,43.65819,1692.3,1692.2,6.33086577]
[1745340543343,45.24779,1692.3,1692.2,6.33086577]
[1745340543543,45.24779,1692.3,1692.2,5.591959]
[1745340544140,43.65819,1692.3,1692.2,5.591959]
[1745340544448,40.8,1692.3,1692.2,6.773119]
[1745340544645,40.8,1692.3,1692.2,14.303919]
[1745340544843,0.00886577,1692.5,1692.4,1.18102]
[1745340545041,0.00886577,1692.5,1692.4,4.38882]
[1745340545246,0.00886577,1692.5,1692.4,17.39322]
[1745340545746,40.80886577,1692.5,1692.4,17.39322]
[1745340545946,0.00886577,1692.5,1692.4,22.24922]
[1745340546154,13.71665,1693.5,1693.1,1.18053]
[1745340546341,13.71665,1693.5,1693.3,1.18035]
[1745340546342,6.6371,1693.5,1693.3,1.18035]
[1745340546535,7.81735,1693.5,1693.4,1.6824]
[1745340546739,6.6371,1693.5,1693.4,2.86272]
[1745340546950,41.98025,1693.5,1693.4,1.6824]
[1745340547344,41.98025,1693.5,1693.4,8.0044]
[1745340547650,40.8,1693.5,1693.4,9.18472]
[1745340548852,40.8,1693.5,1693.4,12.39252]
[1745340549255,40.8,1693.5,1693.4,13.20242]
[1745340550039,40.8,1693.5,1693.4,14.06332]
[1745340550242,40.8,1693.5,1693.4,19.06332]
[1745340551445,40.8,1693.5,1693.4,12.0221]
[1745340551645,40.8,1693.5,1693.4,13.20242]
[1745340552947,40.8,1693.5,1693.4,18.20242]
[1745340553654,0.00886577,1693.6,1693.5,1.18025]
[1745340553851,0.00886577,1693.6,1693.5,3.80325]
[1745340554251,0.00886577,1693.6,1693.5,10.12525]
[1745340557861,0.00886577,1693.6,1693.5,15.12525]
[1745340558762,5.77e-06,1693.6,1693.5,15.12525]
[1745340559359,5.77e-06,1693.6,1693.5,18.78575295]
[1745340559662,1.6307,1694.4,1694.2,1.17971]
[1745340559862,1.6307,1694.4,1694.3,2.83069]
[1745340560053,6.03154,1694.6,1694.3,2.83069]
[1745340560252,1.69876457,1694.5,1694.4,1.651]
[1745340560656,7.87831457,1694.5,1694.4,1.67639239]
[1745340560866,48.67831457,1694.5,1694.4,1.67639239]
[1745340561056,50.00031457,1694.5,1694.4,1.67639239]
[1745340561463,55.44175933,1694.5,1694.4,0.02539239]
[1745340561763,1.17962,1694.4,1694.3,0.00886577]
[1745340561958,1.17962,1694.4,1694.3,0.00203034]
[1745340562160,6.17962,1694.4,1694.3,0.01772851]
[1745340562762,1.18001,1693.9,1693.8,1.18003]
[1745340563267,2.94958,1694.1,1693.8,1.18003]
[1745340563268,1.17997,1694.0,1693.9,1.17993]
[1745340563568,2.92677,1694.1,1694.0,1.1799]
[1745340564166,2.92677,1694.1,1694.0,6.33770132]
[1745340564368,2.92677,1694.1,1694.0,7.51760132]
[1745340564667,2.92677,1694.1,1694.0,9.22565852]
[1745340565169,1.7469,1694.1,1694.0,9.22565852]
[1745340565357,2.92673,1694.1,1694.0,9.22565852]
[1745340566268,2.92673,1694.1,1694.0,9.1943]
[1745340566470,2.92673,1694.1,1694.0,8.06145984]
[1745340566768,2.92673,1694.1,1694.0,9.24135984]
[1745340568264,0.8624,1694.3,1694.0,11.01119984]
[1745340568463,2.87688,1694.4,1694.3,1.17969]
[1745340568766,1.6972,1694.4,1694.3,1.17969]
[1745340568968,2.87682,1694.4,1694.3,1.17969]
[1745340569563,2.87682,1694.4,1694.3,1.25816609]
[1745340569766,2.87682,1694.4,1694.3,0.07847609]
[1745340570172,2.87682,1694.4,1694.3,6.40047609]
[1745340570374,2.87682,1694.4,1694.3,7.58016609]
[1745340570573,2.87682,1694.4,1694.3,7.59588102]
[1745340571671,2.87682,1694.4,1694.3,7.61159595]
[1745340572177,1.17962,1694.4,1694.3,7.61159595]
[1745340572771,40.8,1694.5,1694.4,1.17962]
[1745340572977,4.39619577,1694.6,1694.5,1.17955]
[1745340573267,1.64796577,1694.6,1694.5,1.17955]
[1745340573474,0.00886577,1694.6,1694.5,1.17955]
[1745340573671,0.00886577,1694.6,1694.5,1.32088581]
[1745340573976,6.02333,1694.9,1694.8,1.17934]
[1745340574273,13.98443,1694.9,1694.8,1.17934]
[1745340574766,20.32106982,1694.9,1694.8,7.4e-07]
[1745340575069,1.1799,1694.0,1693.9,0.00886577]
[1745340575271,1.1799,1694.0,1693.9,0.00203034]
[1745340575668,2.95007,1693.9,1693.5,1.18022]
[1745340575864,1.18004,1693.8,1693.7,0.01563272]
[1745340576067,2.81044,1693.8,1693.7,0.01563272]
[1745340576463,43.61044,1693.8,1693.7,0.01563272]
[1745340576970,1.18011,1693.7,1693.6,1.18903577]
[1745340577275,2.77917925,1693.7,1693.6,1.18903577]
[1745340577480,2.77917925,1693.7,1693.6,0.00886577]
[1745340578283,43.57917925,1693.7,1693.6,0.0245638]
[1745340579271,43.57917925,1693.7,1693.6,0.04026183]
[1745340580782,43.57917925,1693.7,1693.6,0.05307249]
[1745340582881,43.57917925,1693.7,1693.6,1.74857249]
[1745340583087,43.57917925,1693.7,1693.6,2.92875249]
[1745340583583,43.57917925,1693.7,1693.6,1.74857249]
[1745340584277,43.57917925,1693.7,1693.6,2.92875249]
[1745340584478,43.57917925,1693.7,1693.6,1.74857249]
[1745340584678,43.57917925,1693.7,1693.6,2.92875249]
[1745340585386,41.94877925,1693.7,1693.6,2.92875249]
[1745340586280,41.94877925,1693.7,1693.6,1.74857249]
[1745340586478,43.64567925,1693.7,1693.6,2.94443935]
[1745340586678,43.64567925,1693.7,1693.6,0.06875935]
[1745340587482,43.64567925,1693.7,1693.6,0.08444621]
[1745340588689,43.64567925,1693.7,1693.6,0.10012776]
[1745340589182,43.64567925,1693.7,1693.6,1.28030776]
[1745340589582,41.94877925,1693.7,1693.6,1.18018]
[1745340589788,41.94877925,1693.7,1693.6,0.57164341]
[1745340589983,41.94877925,1693.7,1693.6,0.64231308]
[1745340590289,41.94877925,1693.7,1693.6,1.82249308]
[1745340590788,1.16449845,1693.6,1693.5,9.29251577]
[1745340591384,41.96449845,1693.6,1693.5,9.29251577]
[1745340591581,40.8,1693.6,1693.5,9.29251577]
[1745340591781,41.98018,1693.6,1693.5,9.30813042]
[1745340595390,41.98018,1693.6,1693.5,8.12788042]
[1745340595585,5.90126,1693.5,1692.4,6.16034]
[1745340595890,1.18077,1692.8,1692.7,1.7776]
[1745340596680,2.78857,1692.8,1692.7,1.7776]
[1745340597087,1.18077,1692.8,1692.7,8.0996]
[1745340597290,40.8,1692.8,1692.7,9.28041]
[1745340597794,40.8,1692.8,1692.7,9.29608421]
[1745340597991,3.21666577,1692.9,1692.8,1.18074]
[1745340598189,1.18953577,1692.9,1692.8,7.50274]
[1745340598589,41.98953577,1692.9,1692.8,7.50274]
[1745340598796,40.80886577,1692.9,1692.8,7.51841421]
[1745340599090,45.19733577,1692.9,1692.8,6.35334842]
[1745340599296,45.19733577,1692.9,1692.8,7.53408842]
[1745340599796,45.19733577,1692.9,1692.8,6.35334842]
[1745340600096,45.19733577,1692.9,1692.8,7.50274]
[1745340600394,41.98953577,1692.9,1692.8,6.36902263]
[1745340600794,45.19733577,1692.9,1692.8,6.36902263]
[1745340600991,45.19733577,1692.9,1692.8,7.56543684]
[1745340601395,41.98953577,1692.9,1692.8,7.56543684]
[1745340601595,40.80886577,1692.9,1692.8,7.56543684]
[1745340601797,41.98953577,1692.9,1692.8,6.40037105]
[1745340601998,40.80886577,1692.9,1692.8,7.58111105]
[1745340602298,41.98953577,1692.9,1692.8,7.58111105]
[1745340602700,40.80886577,1692.9,1692.8,7.58111105]
[1745340603094,41.98953577,1692.9,1692.8,7.58111105]
[1745340603699,40.80886577,1692.9,1692.8,7.58111105]
[1745340604198,41.98953577,1692.9,1692.8,7.58111105]
[1745340604496,40.80886577,1692.9,1692.8,7.58111105]
[1745340605299,41.98953577,1692.9,1692.8,7.58111105]
[1745340605893,45.19733577,1692.9,1692.8,5.66195649]
[1745340606596,45.19733577,1692.9,1692.8,4.95301838]
[1745340607198,45.19733577,1692.9,1692.8,6.13375838]
[1745340607900,45.19733577,1692.9,1692.8,4.98248751]
[1745340608495,2.95185,1692.8,1691.7,2.95376]
[1745340608799,1.18129,1692.1,1692.0,1.18128]
[1745340608999,1.15182087,1692.1,1692.0,1.18128]
[1745340609200,41.95182087,1692.1,1692.0,7.50328]
[1745340609598,40.8,1692.1,1692.0,7.50328]
[1745340609896,41.98123,1692.1,1692.0,7.50328]
[1745340610096,41.98123,1692.1,1692.0,7.52493144]
[1745340610405,41.98123,1692.1,1692.0,6.34365144]
[1745340610796,43.64423,1692.1,1692.0,8.07675144]
[1745340611102,43.64423,1692.1,1692.0,9.25805144]
[1745340611405,43.64423,1692.1,1692.0,8.07675144]
[1745340611606,53.48623,1692.1,1692.0,6.34365144]
[1745340611899,1.1815,1691.7,1691.6,1.6268]
[1745340612100,4.3893,1691.7,1691.6,1.6268]
[1745340613397,1.18157,1691.6,1691.5,6.322]
[1745340613610,2.88417,1691.6,1691.5,7.9488]
[1745340614101,45.18935,1691.7,1691.5,7.9488]
[1745340614298,1.18157,1691.6,1691.5,9.13039]
[1745340614697,1.18157,1691.6,1691.5,9.1304]
[1745340614906,1.18157,1691.6,1691.5,7.9488]
[1745340615100,2.81107,1691.6,1691.5,7.9488]
[1745340616497,2.81107,1691.6,1691.5,6.322]
[1745340616703,2.81107,1691.6,1691.5,4.09254755]
[1745340619414,2.81107,1691.6,1691.5,5.78944755]
[1745340620111,7.81107,1691.6,1691.5,4.09254755]
[1745340620308,7.81107,1691.6,1691.5,2.64035755]
[1745340620510,13.72107,1691.6,1691.5,1.19e-06]
[1745340621203,1.18199,1691.0,1690.9,1.7383]
[1745340621513,4.38979,1691.0,1690.9,1.7383]
[1745340621811,1.18206,1690.9,1690.8,0.8914]
[1745340622110,2.82076,1690.9,1690.8,0.8914]
[1745340622308,2.82076,1690.9,1690.8,7.2134]
[1745340623801,2.82076,1690.9,1690.8,6.322]
[1745340624207,1.18227,1690.6,1690.5,1.18233]
[1745340624414,45.19014,1690.6,1690.5,1.18234]
[1745340625214,45.19014,1690.6,1690.5,7.50434]
[1745340626304,45.19014,1690.6,1690.5,6.322]
[1745340626503,45.19014,1690.6,1690.5,7.50434]
[1745340626813,44.0078,1690.6,1690.5,7.50434]
[1745340627315,45.19007,1690.6,1690.5,7.50434]
[1745340629211,44.0078,1690.6,1690.5,7.50434]
[1745340629615,40.8,1690.6,1690.5,12.50434]
[1745340629915,0.00886577,1690.7,1690.6,1.18227]
[1745340630113,0.00886577,1690.7,1690.6,1.99197]
[1745340630304,0.00886577,1690.7,1690.6,6.99197]
[1745340630702,40.80886577,1690.7,1690.6,6.99197]
[1745340631314,41.99106577,1690.7,1690.6,1.99197]
[1745340631506,41.99106577,1690.7,1690.6,0.8097]
[1745340631707,1.18227,1690.6,1690.5,6.322]
[1745340631916,4.39007,1690.6,1690.5,6.322]
[1745340632214,6.06297,1690.6,1690.5,6.322]
[1745340632412,1.18234,1690.5,1690.4,0.8526]
[1745340632619,1.18234,1690.5,1690.4,2.03501]
[1745340632915,1.18234,1690.5,1690.4,0.8526]
[1745340633318,1.18234,1690.5,1690.4,7.1746]
[1745340633718,1.18234,1690.5,1690.4,8.35701]
[1745340634020,1.18234,1690.5,1690.4,4.06]
[1745340634205,2.82924,1690.5,1690.4,4.06]
[1745340635213,1.18234,1690.5,1690.4,4.06]
[1745340635419,8.00418483,1690.5,1690.4,4.06]
[1745340635919,8.00418483,1690.5,1690.4,3.32022054]
[1745340636113,2.95641,1690.2,1689.5,3.76948]
[1745340636308,3.2078,1690.2,1690.1,1.18262]
[1745340638313,1.18262,1690.1,1690.0,7.1976]
[1745340639321,1.18262,1690.1,1690.0,8.38029]
[1745340639725,1.18262,1690.1,1690.0,7.50469]
[1745340640114,1.18262,1690.1,1690.0,6.322]
[1745340640319,19.97848422,1690.1,1690.0,6.322]
[1745340640518,20.45399418,1690.1,1690.0,3.66663]
[1745340640712,1.18304,1689.5,1689.4,1.18307]
[1745340641019,1.18314,1689.4,1689.3,1.18313]
[1745340641220,1.18309,1689.5,1689.4,7.50508]
[1745340641520,1.18309,1689.5,1689.4,7.50511]
[1745340641918,3.21666577,1689.6,1689.4,11.322]
[1745340642215,0.00886577,1689.6,1689.5,1.18304]
[1745340642418,45.643,1690.1,1690.0,1.18269]
[1745340642611,45.643,1690.1,1689.6,7.72040295]
[1745340642816,4.3907,1689.8,1689.7,1.1829]
[1745340643019,3.2078,1689.8,1689.7,1.1829]
[1745340643224,4.39054,1690.0,1689.9,1.18276]
[1745340643519,3.2078,1690.0,1689.9,1.18276]
[1745340644118,3.2078,1690.0,1689.9,7.50476]
[1745340644722,4.39049,1690.0,1689.9,7.50476]
[1745340645524,4.39049,1690.0,1689.9,8.37106]
[1745340646925,4.39049,1690.0,1689.9,7.1883]
[1745340647117,6.05089,1690.0,1689.9,7.1883]
[1745340647518,6.05089,1690.0,1689.9,8.8007]
[1745340647914,6.05089,1690.0,1689.9,6.322]
[1745340648919,4.39049,1690.0,1689.9,7.50476]
[1745340649223,3.2078,1690.0,1689.9,7.50476]
[1745340650524,4.39049,1690.0,1689.9,6.322]
[1745340650721,4.39049,1690.0,1689.9,7.50476]
[1745340651622,3.2078,1690.0,1689.9,7.50476]
[1745340652022,41.99154577,1690.1,1690.0,1.18269]
[1745340652023,40.80886577,1690.1,1690.0,1.18269]
[1745340652222,40.80886577,1690.1,1690.0,4.64309]
[1745340653227,41.99148577,1690.1,1690.0,10.96509]
[1745340654727,40.80886577,1690.1,1690.0,10.96509]
[1745340655026,41.99148577,1690.1,1690.0,10.96509]
[1745340655226,40.80886577,1690.1,1690.0,10.96509]
[1745340655824,5.77e-06,1690.1,1690.0,22.83339295]
[1745340656025,3.2078,1690.8,1690.7,1.1822]
[1745340656525,3.2078,1691.3,1691.1,2.95471]
[1745340656728,3.2078,1691.3,1691.2,1.18185]
[1745340656729,44.0078,1691.3,1691.2,1.18185]
[1745340656916,44.0078,1691.3,1691.2,3.71935]
[1745340657119,44.0078,1691.3,1691.2,10.04135]
[1745340657619,3.2078,1691.3,1691.2,10.04135]
[1745340658219,5.44386577,1691.4,1691.3,1.18178]
[1745340658426,5.44386577,1691.4,1691.3,2.01348]
[1745340659128,5.44386577,1691.4,1691.3,8.33548]
[1745340661032,4.20531577,1691.4,1691.3,20.20378295]
[1745340661224,0.23113577,1691.4,1691.3,20.20378295]
[1745340661425,3.2078,1691.9,1691.4,2.95424]
[1745340661426,1.18149,1691.8,1691.4,2.95424]
[1745340661623,3.2078,1691.9,1691.5,1.7655]
[1745340661831,3.2078,1691.9,1691.6,1.18152]
[1745340662036,1.18149,1691.8,1691.7,1.7655]
[1745340662632,2.93599,1691.8,1691.7,1.7655]
[1745340662834,1.1815,1691.7,1691.6,1.18153]
[1745340663036,1.1815,1691.7,1691.6,2.94703]
[1745340663429,40.8,1691.7,1691.6,2.94703]
[1745340664433,41.9815,1691.7,1691.6,2.94703]
[1745340664636,40.8,1691.7,1691.6,2.94703]
[1745340667032,3.21666577,1691.9,1691.8,1.18143]
[1745340667336,3.21666577,1691.9,1691.8,7.50343]
[1745340667835,0.00886577,1691.9,1691.8,9.13693]
[1745340668739,5.77e-06,1691.9,1691.8,14.13693]
[1745340669031,5.77e-06,1691.9,1691.8,17.79743295]
[1745340669238,3.2078,1692.6,1692.5,1.18095]
[1745340669536,44.0078,1692.6,1692.5,1.18095]
[1745340670236,44.0078,1692.6,1692.5,7.50295]
[1745340670733,45.18868,1692.6,1692.5,7.50295]
[1745340670936,44.0078,1692.6,1692.5,7.50295]
[1745340671837,45.18868,1692.6,1692.5,7.50295]
[1745340672132,0.00886577,1692.7,1692.6,1.18088]
[1745340672324,0.00886577,1692.7,1692.6,2.90928]
[1745340674129,1.18967577,1692.7,1692.6,2.90928]